fUSD/lending_fUSD_20241028
["ID","MTS","AMOUNT","RATE_DAILY","PERIOD"]
[340930208,1730119838670,-151.0,0.00042197,14]
[340930209,1730119838679,-254.057597,0.00042197,14]
[340930210,1730119838691,-700.614661,0.00042197,14]
[340930211,1730119838700,-700.614661,0.00042197,14]
[340930212,1730119838709,-700.614661,0.00042197,14]
[340930213,1730119838718,-700.614661,0.00042197,14]
[340930214,1730119838727,-3262.325381,0.00042197,14]
[340930215,1730119838736,-3262.325381,0.00042197,14]
[340930216,1730119838746,-3262.325381,0.00042197,14]
[340930217,1730119838755,-3262.325381,0.00042197,14]
[340930218,1730119838764,-151.0,0.00042197,14]
[340930219,1730119838774,-151.0,0.00042197,14]
[340930220,1730119838783,-251.028166,0.00042197,7]
[340930221,1730119838792,-151.0,0.00042197,14]
[340930222,1730119838801,-151.0,0.00042197,14]
[340930223,1730119838810,-151.0,0.00042198,14]
[340930224,1730119838819,-151.0,0.00042198,14]
[340930225,1730119838828,-151.0,0.00042198,14]
[340930226,1730119838837,-151.0,0.00042198,14]
[340930227,1730119838846,-151.0,0.00042198,14]
[340930228,1730119838855,-151.0,0.00042198,7]
[340930229,1730119838866,-151.0,0.00042198,7]
[340930230,1730119838875,-151.0,0.00042198,14]
[340930231,1730119838883,-151.0,0.00042198,14]
[340930232,1730119838892,-452.329406,0.00042198,14]
[340930233,1730119838901,-452.329406,0.00042198,14]
[340930234,1730119838910,-452.329406,0.00042198,14]
[340930235,1730119838922,-452.329406,0.00042198,14]
[340930236,1730119838931,-165.346608,0.00042198,14]
[340930237,1730119838940,-151.0,0.00042198,14]
[340930238,1730119838948,-151.0,0.00042198,14]
[340930239,1730119838958,-151.0,0.00042198,14]
[340930240,1730119838968,-151.0,0.00042198,14]
[340930241,1730119838977,-151.0,0.00042198,14]
[340930242,1730119838986,-151.0,0.00042198,14]
[340930243,1730119838994,-151.0,0.00042198,14]
[340930244,1730119839003,-151.0,0.00042198,14]
[340930245,1730119839012,-254.057597,0.00042198,14]
[340930246,1730119839021,-151.0,0.00042198,14]
[340930247,1730119839030,-151.0,0.00042198,14]
[340930248,1730119839039,-254.057597,0.00042198,14]
[340930249,1730119839048,-700.614661,0.00042198,14]
[340930250,1730119839057,-700.614661,0.00042198,14]
[340930251,1730119839066,-3262.325381,0.00042198,14]
[340930252,1730119839075,-3262.325381,0.00042198,14]
[340930253,1730119839084,-244.205012,0.00042198,14]
[340930254,1730119839093,-209.931811,0.000422,14]
[340930255,1730119839102,-151.0,0.000422,14]
[340930256,1730119839112,-151.0,0.000422,7]
[340930257,1730119839121,-151.0,0.000422,14]
[340930258,1730119839130,-452.329406,0.000422,14]
[340930259,1730119839139,-452.329406,0.000422,14]
[340930260,1730119839148,-151.0,0.000422,14]
[340930261,1730119839157,-151.0,0.000422,14]
[340930262,1730119839166,-151.0,0.000422,14]
[340930263,1730119839174,-151.0,0.000422,14]
[340930264,1730119839184,-151.0,0.000422,14]
[340930265,1730119839193,-151.0,0.000422,14]
[340930266,1730119839202,-254.057597,0.000422,14]
[340930267,1730119839212,-151.0,0.000422,14]
[340930268,1730119839221,-151.0,0.000422,14]
[340930269,1730119839230,-254.057597,0.000422,14]
[340930270,1730119839239,-700.614661,0.000422,14]
[340930271,1730119839248,-700.614661,0.000422,14]
[340930272,1730119839257,-3262.325381,0.000422,14]
[340930273,1730119839267,-3262.325381,0.000422,14]
[340930274,1730119839276,-151.0,0.000422,14]
[340930275,1730119839285,-25598.05321002,0.00042244,9]
[340930276,1730119839299,-20012.79246903,0.00042244,9]
[340930277,1730119839310,-14001.13991615,0.00042244,9]
[340930278,1730119839319,-5183.65092132,0.00042244,9]
[340930279,1730119839328,-1328.81414973,0.00042244,15]
[340930280,1730119839337,-151.0,0.00042244,14]
[340930281,1730119839346,-170.038206,0.00042253,14]
[340930282,1730119839356,-151.0,0.00042253,7]
[340930283,1730119839366,-151.0,0.00042253,14]
[340930284,1730119839375,-452.329406,0.00042253,14]
[340930285,1730119839384,-452.329406,0.00042253,14]
[340930286,1730119839394,-2591.82546066,0.00042254,9]
[340930287,1730119839403,-44547.10496408,0.00042254,4]
[340930288,1730119839415,-728.89825727,0.00042254,4]
[340930293,1730119839938,-451.05,0.0004209,10]
[340930294,1730119839947,-50.19161096,0.00042144,14]
[340930295,1730119839958,-100.80838904,0.00042144,14]
[340930296,1730119839967,-151.0,0.00042153,14]
[340930297,1730119839976,-151.0,0.00042154,14]
[340930298,1730119839985,-151.0,0.00042197,14]
[340930299,1730119839994,-253.84286757,0.00042197,14]
[340930315,1730119842813,-5.60419743,0.00042197,14]
[340930316,1730119842823,-69031.6103796,0.00042254,4]
[340930317,1730119842871,-353.54472925,0.00042254,4]
[340930320,1730119845820,-298.37,0.00041876,2]
[340930321,1730119845830,-856.18716315,0.00042153,2]
[340930322,1730119845840,-7387.54294604,0.00042254,4]
[340930323,1730119845850,-151.0,0.00042254,14]
[340930324,1730119845860,-452.329406,0.00042254,14]
[340930325,1730119845870,-452.329406,0.00042254,14]
[340930326,1730119845879,-151.0,0.00042254,14]
[340930327,1730119845889,-151.0,0.00042254,14]
[340930328,1730119845898,-151.0,0.00042254,14]
[340930329,1730119845907,-151.0,0.00042254,14]
[340930330,1730119845916,-151.0,0.00042254,14]
[340930331,1730119845925,-243.345317,0.00042254,14]
[340930332,1730119845934,-151.0,0.00042254,14]
[340930333,1730119845942,-254.057597,0.00042254,14]
[340930334,1730119845951,-151.0,0.00042254,14]
[340930335,1730119845961,-151.0,0.00042254,14]
[340930336,1730119845970,-254.057597,0.00042254,14]
[340930337,1730119845980,-700.614661,0.00042254,14]
[340930338,1730119845989,-700.614661,0.00042254,14]
[340930339,1730119845998,-3262.325381,0.00042254,14]
[340930340,1730119846007,-3262.325381,0.00042254,14]
[340930341,1730119846016,-151.0,0.00042254,14]
[340930342,1730119846026,-28861.85677129,0.00042254,9]
[340930343,1730119846038,-4831.87421731,0.00042254,9]
[340930344,1730119846047,-3442.77207069,0.00042264,4]
[340930354,1730121031802,-152.8,0.00018,4]
[340930355,1730121031811,-172.32534949,0.000199,2]
[340930356,1730121031821,-152.0,0.0002,2]
[340930357,1730121031830,-152.0,0.00025,5]
[340930358,1730121031839,-236.0,0.000266,2]
[340930359,1730121031848,-152.0,0.0003,10]
[340930360,1730121031857,-451.27,0.0003682,2]
[340930361,1730121031866,-204.11,0.00037408,2]
[340930362,1730121031875,-141.28489695,0.00037408,2]
[340930363,1730121031887,-63.15510305,0.00037408,2]
[340930364,1730121031896,-150.99,0.00037408,30]
[340930365,1730121031904,-199.32812603,0.000388,2]
[340930366,1730121031915,-509.60892805,0.000388,2]
[340930367,1730121031927,-295.44814184,0.000388,2]
[340930368,1730121031938,-1617.67480408,0.000388,2]
[340930369,1730121031947,-250.0,0.00038816,120]
[340930370,1730121031957,-23890.0,0.00038833,2]
[340930371,1730121031966,-500.0,0.00038999,2]
[340930372,1730121031975,-451.27,0.00039083,2]
[340930373,1730121031984,-150.0,0.00039107,4]
[340930374,1730121031993,-6664.72,0.00039108,2]
[340930375,1730121032003,-999.99,0.00039108,2]
[340930376,1730121032012,-172.65,0.00039145,2]
[340930377,1730121032021,-486.1,0.00039217,2]
[340930378,1730121032030,-799.67,0.00039372,2]
[340930379,1730121032039,-6481.3,0.00039485,2]
[340930380,1730121032049,-325.837,0.000399,56]
[340930381,1730121032058,-375.88,0.0003999,10]
[340930382,1730121032068,-313.23,0.0003999,10]
[340930383,1730121032077,-261.03,0.0003999,10]
[340930384,1730121032087,-217.52,0.0003999,10]
[340930385,1730121032096,-63657.0,0.0004,2]
[340930386,1730121032105,-152.0,0.0004,10]
[340930387,1730121032115,-152.0,0.0004,20]
[340930388,1730121032124,-200.11,0.0004017,2]
[340930389,1730121032133,-181.55,0.00040217,120]
[340930390,1730121032142,-191.86,0.00040608,2]
[340930391,1730121032152,-156.9,0.00040663,2]
[340930393,1730121032162,-1766.28380645,0.00040685,15]
[340930395,1730121032171,-513.28839782,0.00040699,30]
[340930397,1730121032181,-156.9,0.00040703,2]
[340930399,1730121032191,-156.9,0.00040744,2]
[340930400,1730121032201,-98244.31,0.00040765,2]
[340930402,1730121032210,-156.9,0.00040785,2]
[340930403,1730121032219,-156.9,0.00040825,2]
[340930404,1730121032229,-156.9,0.00040866,2]
[340930405,1730121032242,-1000.0,0.00040881,2]
[340930406,1730121032252,-239.19092404,0.000409,120]
[340930407,1730121032262,-11533.0,0.00041,3]
[340930408,1730121032271,-1766.28380636,0.00041028,15]
[340930409,1730121032281,-156.18,0.00041096,2]
[340930410,1730121032291,-170.84,0.00041119,2]
[340930411,1730121032300,-451.27,0.00041347,2]
[340930412,1730121032311,-1766.28380636,0.00041371,15]
[340930413,1730121032320,-289.86,0.00041576,7]
[340930414,1730121032334,-1766.28380636,0.00041714,15]
[340930415,1730121032343,-173.98935599,0.0004187,28]
[340930416,1730121032353,-150.334,0.00041876,2]
[340930417,1730121032363,-1980.0,0.00041876,2]
[340930418,1730121032372,-392.318,0.00041876,2]
[340930419,1730121032382,-1264.0,0.00041876,2]
[340930420,1730121032391,-760.137,0.00041876,2]
[340930421,1730121032401,-973.971,0.00041876,2]
[340930422,1730121032410,-326.196,0.00041876,2]
[340930423,1730121032419,-150.0,0.00041876,2]
[340930424,1730121032429,-208.607,0.00041876,2]
[340930425,1730121032437,-313.14642439,0.0004188,2]
[340930426,1730121032446,-11533.0,0.000419,5]
[340930427,1730121032456,-652.465076,0.00041953,14]
[340930428,1730121032465,-652.465076,0.00041953,14]
[340930429,1730121032474,-156.382209,0.00041953,14]
[340930430,1730121032483,-153.139137,0.00041953,14]
[340930431,1730121032492,-151.0,0.00041953,14]
[340930432,1730121032501,-711.3556,0.00041953,2]
[340930433,1730121032510,-441.2071,0.00041953,2]
[340930434,1730121032519,-16000.88750822,0.00041953,2]
[340930435,1730121032611,-337.36323209,0.00041953,2]
[340930436,1730121032623,-1320.34518728,0.00041953,2]
[340930437,1730121032635,-2833.80267241,0.00041953,2]
[340930438,1730121032647,-511.65255222,0.0004197,9]
[340930439,1730121032656,-151.0,0.0004197,14]
[340930440,1730121032665,-151.0,0.0004197,14]
[340930441,1730121032674,-1534.95765666,0.0004197,9]
[340930442,1730121032684,-966.66270194,0.0004197,9]
[340930443,1730121032695,-1137.33097441,0.0004197,9]
[340930444,1730121032706,-300.0,0.0004197,9]
[340930445,1730121032717,-603.66404417,0.0004197,9]
[340930446,1730121032728,-8949.50797892,0.0004197,9]
[340930447,1730121032739,-909.3594811,0.0004197,9]
[340930448,1730121032750,-404.0,0.0004197,9]
[340930449,1730121032998,-2609.95067199,0.0004197,9]
[340930450,1730121033009,-3820.84714143,0.0004197,9]
[340930451,1730121033020,-3487.72454368,0.0004197,9]
[340930452,1730121033031,-7876.36915987,0.0004197,9]
[340930453,1730121033042,-811.05669613,0.0004197,9]
[340930454,1730121033054,-7797.10304481,0.0004197,9]
[340930456,1730121038040,-50365.21686555,0.0004197,9]
[340930457,1730121038050,-652.465076,0.0004197,14]
[340930458,1730121038059,-652.465076,0.0004197,14]
[340930459,1730121038068,-11254.849163,0.0004198,9]
[340930460,1730121038077,-1582.96482461,0.0004198,2]
[340930461,1730121038086,-43598.34386294,0.0004198,2]
[340930462,1730121038095,-141673.63064676,0.0004198,7]
[340930463,1730121038150,-7888.25829219,0.0004198,7]
[340930516,1730121040030,-12868.29487777,0.0004198,7]
[340930549,1730121043312,-1000.0,0.00041092,2]
[340930551,1730121043322,-181.27,0.0004197,10]
[340930553,1730121043332,-11387.66926946,0.0004198,2]
[340930555,1730121043342,-50208.89746263,0.0004198,7]
[340930604,1730121045834,-12637.93858985,0.0004198,7]
[340930605,1730121045893,-10415.56985291,0.0004198,7]
[340930606,1730121046162,-7318.07186036,0.0004198,7]
[340930619,1730121908272,206593.87,0.00015,2]
[340930620,1730121908309,462185.10827107,0.00015,2]
[340930621,1730121930575,34931.06754608,0.000101,2]
[340930622,1730121935804,150.11121129,0.0001,2]
[340930623,1730121937814,2250.0,9e-05,2]
[340930624,1730121957592,5766.4695737,6.94e-05,2]
[340930626,1730122084685,1041.08380597,0.0001,2]
[340930627,1730122089998,203444.66455603,0.00015,2]
[340930628,1730122132763,948.71680607,0.0001,2]
[340930633,1730122206354,399.0,0.00025,90]
[340930656,1730122232235,-163.58,0.00015342,2]
[340930657,1730122232246,-159.58,0.00015342,2]
[340930658,1730122232256,-154.77,0.00019096,2]
[340930659,1730122232266,-315.9698375,0.0002,5]
[340930660,1730122232277,-305.60698944,0.0002,5]
[340930661,1730122232287,-714.94000001,0.0002,2]
[340930662,1730122232298,-1753.08841491,0.000232,2]
[340930663,1730122232308,-1635.5215029,0.00023922,2]
[340930664,1730122232318,-1046.66797887,0.0002495,2]
[340930665,1730122232330,-1027.08871442,0.00026,2]
[340930666,1730122232340,-196.0,0.000267,2]
[340930667,1730122232350,-15171.955868,0.0003088,2]
[340930668,1730122232360,-446.19,0.00037384,2]
[340930670,1730122232370,-446.19,0.00039648,2]
[340930672,1730122232379,-1838.22,0.00039846,2]
[340930674,1730122232388,-250.0,0.00039917,120]
[340930676,1730122232398,-800.0,0.00039986,2]
[340930678,1730122232408,-1000.0,0.0004,31]
[340930680,1730122232418,-592.71,0.00040014,2]
[340930682,1730122232427,-790.91,0.00040377,2]
[340930683,1730122232436,-158.21,0.00040396,2]
[340930684,1730122232445,-153.56,0.000404,2]
[340930685,1730122232454,-528.54,0.00040457,120]
[340930686,1730122232463,-5397.17230756,0.00040463,2]
[340930692,1730122238086,-1495.53269312,0.00040463,2]
[340930693,1730122238314,-670.70906703,0.00040463,2]
[340930731,1730122240279,-860.40400003,0.00040463,2]
[340930732,1730122240291,-15466.18193226,0.00040463,2]
[340930733,1730122240300,-271.513,0.00040463,2]
[340930734,1730122240310,-500.0,0.00040483,2]
[340930735,1730122240319,-1572.34,0.00040483,2]
[340930736,1730122240330,-200.0,0.00040573,2]
[340930737,1730122240339,-172.65,0.00040914,2]
[340930738,1730122240348,-120.50883574,0.00040985,2]
[340930740,1730122244175,-63.95116426,0.00040985,2]
[340930741,1730122244185,-342.6073623,0.00041,31]
[340930744,1730122246015,-657.3926377,0.00041,31]
[340930745,1730122246025,-434.576,0.00041001,59]
[340930746,1730122246035,-156.35,0.00041025,2]
[340930747,1730122246044,-155.84,0.00041096,2]
[340930748,1730122246054,-1938.0,0.00041413,30]
[340930749,1730122246063,-2096.2278,0.0004178,2]
[340930750,1730122246072,-262.5797,0.0004178,2]
[340930751,1730122246082,-486.778,0.0004178,2]
[340930752,1730122246091,-1262.0,0.0004188,2]
[340930753,1730122246100,-5842.2916,0.0004188,2]
[340930754,1730122246109,-920.2787,0.0004188,2]
[340930755,1730122246118,-6511.4197556,0.0004188,2]
[340930756,1730122246129,-254.26129406,0.0004188,2]
[340930757,1730122246140,-3315.2767456,0.0004188,2]
[340930765,1730122352258,999.3,1.15e-06,120]
[340930814,1730123432240,-160.32,0.00015342,2]
[340930816,1730123432253,-185.82,0.00017,2]
[340930820,1730123432415,-64.18,0.00017,2]
[340930821,1730123432425,-300.0,0.00019,2]
[340930822,1730123432434,-1024.72513742,0.00023,2]
[340930823,1730123432445,-691.71624451,0.00023,2]
[340930824,1730123432456,-372.57,0.00023,2]
[340930828,1730123438417,-910.98861807,0.00023,2]
[340930829,1730123438427,-224.0,0.000265,2]
[340930830,1730123438436,-613.94,0.00037079,2]
[340930831,1730123438445,-943.8,0.00037079,2]
[340930832,1730123438455,-1111.62,0.00037714,2]
[340930833,1730123438464,-415.87,0.00037813,2]
[340930834,1730123438473,-200.0,0.00037965,2]
[340930835,1730123438483,-184.71,0.0003797,2]
[340930836,1730123438494,-151.06,0.0003798,10]
[340930837,1730123438503,-755.31,0.0003798,10]
[340930838,1730123438512,-660.0,0.00037989,2]
[340930839,1730123438521,-109181.93486533,0.0003799,2]
[340930840,1730123438530,-22927.31040344,0.00038,2]
[340930841,1730123438573,-491.64669711,0.00038,2]
[340930848,1730123438809,-75.22723656,0.00038,2]
[340930851,1730123438821,-34275.81566289,0.00038,2]
[340930853,1730123438829,-359.33,0.00038045,2]
[340930854,1730123438839,-667.32,0.00038505,2]
[340930856,1730123438848,-67633.29,0.00038505,2]
[340930858,1730123438858,-206.87,0.00038508,120]
[340930860,1730123438867,-640.0,0.00038906,2]
[340930862,1730123438877,-5400.49,0.00038918,2]
[340930864,1730123438886,-150.0,0.00038987,7]
[340930881,1730123439036,-1206.34,0.00038987,2]
[340930883,1730123439046,-250.0,0.00038997,120]
[340930885,1730123439056,-1396.75685718,0.00039026,15]
[340930887,1730123439066,-23900.0,0.00039126,2]
[340930889,1730123439077,-250.0,0.00039126,2]
[340930891,1730123439086,-151.72,0.00039126,2]
[340930893,1730123439096,-240.11,0.00039321,2]
[340930895,1730123439107,-613.94,0.00039343,2]
[340930897,1730123439116,-1396.75685718,0.00039552,15]
[340930899,1730123439126,-184.71,0.00039869,2]
[340930901,1730123439135,-579.6932072,0.00039973,5]
[340930903,1730123439144,-500.0,0.00039973,5]
[340930905,1730123439153,-74999.6674923,0.0003999,9]
[340930907,1730123439162,-116255.62685934,0.0004,30]
[340930909,1730123439171,-151.0,0.0004,14]
[340930911,1730123439181,-151.0,0.0004,14]
[340930913,1730123439190,-153.546762,0.0004,14]
[340930915,1730123439200,-151.0,0.0004,14]
[340930917,1730123439209,-151.0,0.0004,14]
[340930919,1730123439218,-151.0,0.0004,14]
[340930921,1730123439228,-153.791704,0.0004,14]
[340930923,1730123439237,-154.096203,0.0004,14]
[340930925,1730123439248,-151.0,0.0004,7]
[340930927,1730123439257,-151.0,0.0004,14]
[340930929,1730123439267,-151.0,0.0004,14]
[340930931,1730123439276,-151.0,0.0004,14]
[340930933,1730123439285,-360.0,0.00040022,2]
[340930935,1730123439295,-1396.75685718,0.00040078,15]
[340930936,1730123439304,-1396.75685718,0.00040604,15]
[340930938,1730123439314,-151.64314283,0.00040766,28]
[340930940,1730123439323,-3571.41273773,0.00040802,9]
[340930942,1730123439332,-152.93,0.00040812,2]
[340930944,1730123439342,-152.93,0.00040826,2]
[340930946,1730123439356,-152.93,0.0004084,2]
[340930948,1730123439365,-601.243,0.00040853,59]
[340930950,1730123439374,-152.93,0.00040853,2]
[340930952,1730123439383,-181.02552319,0.00040853,59]
[340930954,1730123439394,-152.93,0.00040867,2]
[340930956,1730123439403,-152.93,0.00040881,2]
[340930958,1730123439412,-152.93,0.00040894,2]
[340930960,1730123439422,-152.93,0.00040908,2]
[340930962,1730123439431,-152.93,0.00040921,2]
[340930964,1730123439441,-152.93,0.00040935,2]
[340930966,1730123439450,-152.93,0.00040949,2]
[340930968,1730123439459,-152.93,0.00040962,2]
[340930970,1730123439468,-152.93,0.00040976,2]
[340930972,1730123439477,-152.93,0.00040989,2]
[340930974,1730123439487,-3571.41273773,0.00040999,9]
[340930976,1730123439501,-152.93,0.00041003,2]
[340930978,1730123439510,-151.0,0.00041009,14]
[340930979,1730123439519,-163.454749,0.00041009,14]
[340930980,1730123439529,-159.476227,0.00041009,14]
[340930981,1730123439538,-152.95631,0.00041009,14]
[340930982,1730123439547,-152.93,0.00041017,2]
[340930983,1730123439556,-200.0,0.00041088,2]
[340930984,1730123439565,-155.22,0.00041096,2]
[340930985,1730123439574,-157.0,0.00041096,2]
[340930986,1730123439583,-1396.75685718,0.0004113,15]
[340930987,1730123439593,-3571.41273773,0.00041332,9]
[340930988,1730123439602,-1000.0,0.00041342,10]
[340930989,1730123439611,-500.0,0.00041558,2]
[340930990,1730123439620,-613.94,0.00041606,2]
[340930991,1730123439629,-1396.75685718,0.00041657,15]
[340930992,1730123439639,-7142.82547546,0.0004167,9]
[340930993,1730123439648,-3571.41273773,0.0004167,9]
[340930994,1730123439658,-156.634457,0.0004168,14]
[340930996,1730123439667,-151.0,0.0004168,14]
[340930998,1730123439676,-151.0,0.0004168,14]
[340930999,1730123439685,-152.401578,0.0004168,14]
[340931000,1730123439695,-151.62134,0.0004168,14]
[340931001,1730123439704,-151.0,0.0004168,14]
[340931002,1730123439714,-151.0,0.0004168,14]
[340931003,1730123439723,-154.078647,0.0004168,14]
[340931004,1730123439732,-183.032606,0.0004168,14]
[340931005,1730123439743,-151.0,0.0004168,14]
[340931006,1730123439751,-159.857349,0.0004168,14]
[340931007,1730123439760,-480.6291,0.0004168,2]
[340931008,1730123439770,-403.9164,0.0004168,2]
[340931009,1730123439779,-2671.6162,0.0004168,2]
[340931010,1730123439788,-3571.41273773,0.0004176,9]
[340931011,1730123439797,-184.71,0.00041767,2]
[340931012,1730123439806,-151.0,0.0004177,14]
[340931013,1730123439816,-153.358707,0.0004177,14]
[340931014,1730123439825,-151.0,0.0004177,14]
[340931015,1730123439835,-152.436672,0.0004177,14]
[340931016,1730123439844,-151.0,0.0004177,7]
[340931017,1730123439853,-151.0,0.0004177,14]
[340931018,1730123439863,-151.0,0.0004177,14]
[340931019,1730123439872,-539.6,0.0004177,14]
[340931020,1730123439880,-539.6,0.0004177,14]
[340931021,1730123439890,-151.0,0.0004177,14]
[340931022,1730123439900,-151.0,0.0004177,14]
[340931023,1730123439909,-196.031763,0.0004177,14]
[340931024,1730123439918,-151.0,0.0004177,14]
[340931025,1730123439927,-196.031763,0.0004177,14]
[340931026,1730123439936,-151.0,0.0004177,14]
[340931027,1730123439945,-151.0,0.0004177,14]
[340931028,1730123439954,-151.0,0.0004177,14]
[340931029,1730123439963,-151.0,0.0004177,14]
[340931030,1730123439972,-35714.1273773,0.0004177,9]
[340931031,1730123439981,-151.0,0.0004177,14]
[340931033,1730123439990,-151.0,0.0004177,14]
[340931034,1730123440003,-151.0,0.0004177,14]
[340931035,1730123440012,-151.0,0.0004177,14]
[340931036,1730123440021,-151.0,0.0004177,14]
[340931037,1730123440029,-152.437884,0.0004177,14]
[340931038,1730123440038,-151.0,0.0004177,14]
[340931039,1730123440047,-170.75982,0.0004177,14]
[340931040,1730123440056,-151.0,0.0004177,7]
[340931041,1730123440065,-151.0,0.0004177,7]
[340931042,1730123440074,-151.0,0.0004177,14]
[340931043,1730123440084,-151.0,0.0004177,14]
[340931044,1730123440092,-177.20038,0.0004177,14]
[340931045,1730123440102,-35714.1273773,0.0004177,9]
[340931047,1730123440111,-47186.8246731,0.0004177,9]
[340931048,1730123440121,-26179.2742,0.0004178,2]
[340931049,1730123440130,-151.0,0.0004178,14]
[340931050,1730123440140,-154.730305,0.0004178,14]
[340931051,1730123440149,-155.974395,0.0004178,14]
[340931052,1730123440158,-151.0,0.0004178,14]
[340931053,1730123440167,-151.0,0.0004178,14]
[340931054,1730123440176,-151.0,0.0004178,7]
[340931055,1730123440185,-151.0,0.0004178,14]
[340931056,1730123440194,-152.319306,0.0004178,14]
[340931057,1730123440203,-539.6,0.0004178,14]
[340931058,1730123440212,-539.6,0.0004178,14]
[340931059,1730123440222,-151.0,0.0004178,14]
[340931061,1730123440231,-196.031763,0.0004178,14]
[340931063,1730123440243,-151.0,0.0004178,14]
[340931065,1730123440251,-196.031763,0.0004178,14]
[340931067,1730123440261,-151.0,0.0004178,14]
[340931068,1730123440270,-151.0,0.0004178,14]
[340931070,1730123440279,-151.0,0.0004178,14]
[340931072,1730123440288,-151.0,0.0004178,14]
[340931074,1730123440297,-151.0,0.0004178,14]
[340931076,1730123440306,-151.0,0.0004178,14]
[340931077,1730123440315,-183.032606,0.0004178,14]
[340931078,1730123440325,-183.032606,0.0004178,14]
[340931079,1730123440334,-151.0,0.0004178,14]
[340931080,1730123440345,-151.0,0.0004178,14]
[340931081,1730123440354,-151.0,0.0004178,14]
[340931082,1730123440363,-151.0,0.0004178,14]
[340931083,1730123440372,-151.0,0.0004178,14]
[340931084,1730123440381,-151.0,0.0004178,14]
[340931085,1730123440390,-151.0,0.0004178,14]
[340931086,1730123440399,-151.0,0.0004178,14]
[340931087,1730123440408,-151.0,0.0004178,14]
[340931088,1730123440417,-151.0,0.0004178,14]
[340931089,1730123440426,-151.0,0.0004178,14]
[340931090,1730123440435,-151.0,0.0004178,14]
[340931091,1730123440444,-151.0,0.0004178,7]
[340931092,1730123440453,-153.224013,0.0004178,7]
[340931093,1730123440462,-151.0,0.0004178,14]
[340931094,1730123440471,-151.0,0.0004178,14]
[340931095,1730123440480,-165.399025,0.0004178,14]
[340931096,1730123440492,-165.399025,0.0004178,14]
[340931097,1730123440501,-151.0,0.0004178,14]
[340931098,1730123440509,-151.0,0.0004178,14]
[340931099,1730123440519,-151.0,0.0004178,14]
[340931100,1730123440527,-151.0,0.0004178,14]
[340931101,1730123440536,-165.399025,0.0004178,14]
[340931102,1730123440545,-165.399025,0.0004178,14]
[340931103,1730123440555,-151.0,0.0004178,14]
[340931104,1730123440563,-151.0,0.0004178,14]
[340931105,1730123440572,-152.554412,0.0004178,14]
[340931106,1730123440585,-186.430831,0.0004178,14]
[340931107,1730123440594,-186.430831,0.0004178,14]
[340931108,1730123440603,-151.0,0.0004178,14]
[340931109,1730123440613,-159.859544,0.0004178,14]
[340931110,1730123440621,-186.430831,0.0004178,14]
[340931111,1730123440630,-186.430831,0.0004178,14]
[340931112,1730123440639,-1359.250614,0.0004178,14]
[340931113,1730123440648,-1359.250614,0.0004178,14]
[340931114,1730123440657,-1359.250614,0.0004178,14]
[340931115,1730123440666,-190.801914,0.0004178,14]
[340931116,1730123440675,-1359.250614,0.0004178,14]
[340931117,1730123440684,-151.0,0.0004178,14]
[340931118,1730123440693,-151.0,0.0004178,14]
[340931119,1730123440702,-151.0,0.0004178,14]
[340931120,1730123440711,-154.229728,0.0004178,14]
[340931121,1730123440720,-151.0,0.0004178,14]